{"text_format":"1","workbook":"xlsx","n_sheets":6,"sheets":["Formular Endabrechnung Land","Formular Endabrechnung","Formular Endabrechnung ELER","Formular Endabrechnung EFRE","Hilfeblatt","IMPORT"],"not_rendered":{"charts":0,"images":10,"macros":1,"external_links":0,"defined_names":5,"comments":3,"pivot_tables":0},"unopened":[],"bounds":{"document_bytes":16777216,"sheet_cells":100000,"rows_first":2000,"rows_last":500,"rows_between":2000,"halvings":0,"cell_chars":16384,"cell_head_chars":4096},"cells_cut":0,"cells_raw":0,"read":"whole","date_system":"1900"}

{"sheet":"Formular Endabrechnung Land","index":0,"n_rows":58,"n_cols":21,"rows_kept":58,"cut":false,"hidden":false,"merged":[[24,1,24,12],[25,1,25,12],[1,2,1,10],[4,2,4,10],[5,2,5,10],[6,7,6,8],[8,1,8,14],[2,1,2,14],[3,1,3,14]]}
[]
[]
[null,"Biomasse Nahwärme -"]
[null,"Endabrechnungsformular"]
[]
[]
[null,null,"Förderungsnehmer/in:"]
[]
[null,"Auflistung der zur Förderung beantragten Rechnungen  - Erläuterungen finden Sie im Hilfeblatt "]
[]
[null,"laufende \nNummer","Firma","PLZ Lieferant","Rechnungs-\ndatum","Rechnungs-\nnummer","Art der Leistung\n(Belegtext)","Kostengruppe","Detailgruppe","Rechnungsbetrag \nin EUR \n(inkl. MWSt)","Ust. (in %)","Skonto (in %)","Zahlungs-\ndatum","Zahlungsbetrag \nin EUR (inkl. MWSt)","förderungsfähige Kosten (exkl. MWSt, Skonti, Rabatte, offener Rücklässe)"]
[null,1,null,null,null,null,null,null,null,null,null,null,null,null,{"$f":"IF(ISNUMBER(MIN(Tabelle3[[#This Row],[Zahlungsbetrag \nin EUR (inkl. MWSt)]]/(1+Tabelle3[[#This Row],[Ust. (in %)]]),Tabelle3[[#This Row],[Rechnungsbetrag \nin EUR \n(inkl. MWSt)]]*(1-Tabelle3[[#This Row],[Skonto (in %)]])/(1+Tabelle3[[#This Row],[Ust. (in %)]]))),MIN(Tabelle3[[#This Row],[Zahlungsbetrag \nin EUR (inkl. MWSt)]]/(1+Tabelle3[[#This Row],[Ust. (in %)]]),Tabelle3[[#This Row],[Rechnungsbetrag \nin EUR \n(inkl. MWSt)]]*(1-Tabelle3[[#This Row],[Skonto (in %)]])/(1+Tabelle3[[#This Row],[Ust. (in %)]])),\"\")","v":0}]
[null,2,null,null,null,null,null,null,null,null,null,null,null,null,{"$f":"IF(ISNUMBER(MIN(Tabelle3[[#This Row],[Zahlungsbetrag \nin EUR (inkl. MWSt)]]/(1+Tabelle3[[#This Row],[Ust. (in %)]]),Tabelle3[[#This Row],[Rechnungsbetrag \nin EUR \n(inkl. MWSt)]]*(1-Tabelle3[[#This Row],[Skonto (in %)]])/(1+Tabelle3[[#This Row],[Ust. (in %)]]))),MIN(Tabelle3[[#This Row],[Zahlungsbetrag \nin EUR (inkl. MWSt)]]/(1+Tabelle3[[#This Row],[Ust. (in %)]]),Tabelle3[[#This Row],[Rechnungsbetrag \nin EUR \n(inkl. MWSt)]]*(1-Tabelle3[[#This Row],[Skonto (in %)]])/(1+Tabelle3[[#This Row],[Ust. (in %)]])),\"\")","v":0}]
[null,3,null,null,null,null,null,null,null,null,null,null,null,null,{"$f":"IF(ISNUMBER(MIN(Tabelle3[[#This Row],[Zahlungsbetrag \nin EUR (inkl. MWSt)]]/(1+Tabelle3[[#This Row],[Ust. (in %)]]),Tabelle3[[#This Row],[Rechnungsbetrag \nin EUR \n(inkl. MWSt)]]*(1-Tabelle3[[#This Row],[Skonto (in %)]])/(1+Tabelle3[[#This Row],[Ust. (in %)]]))),MIN(Tabelle3[[#This Row],[Zahlungsbetrag \nin EUR (inkl. MWSt)]]/(1+Tabelle3[[#This Row],[Ust. (in %)]]),Tabelle3[[#This Row],[Rechnungsbetrag \nin EUR \n(inkl. MWSt)]]*(1-Tabelle3[[#This Row],[Skonto (in %)]])/(1+Tabelle3[[#This Row],[Ust. (in %)]])),\"\")","v":0}]
[null,4,null,null,null,null,null,null,null,null,null,null,null,null,{"$f":"IF(ISNUMBER(MIN(Tabelle3[[#This Row],[Zahlungsbetrag \nin EUR (inkl. MWSt)]]/(1+Tabelle3[[#This Row],[Ust. (in %)]]),Tabelle3[[#This Row],[Rechnungsbetrag \nin EUR \n(inkl. MWSt)]]*(1-Tabelle3[[#This Row],[Skonto (in %)]])/(1+Tabelle3[[#This Row],[Ust. (in %)]]))),MIN(Tabelle3[[#This Row],[Zahlungsbetrag \nin EUR (inkl. MWSt)]]/(1+Tabelle3[[#This Row],[Ust. (in %)]]),Tabelle3[[#This Row],[Rechnungsbetrag \nin EUR \n(inkl. MWSt)]]*(1-Tabelle3[[#This Row],[Skonto (in %)]])/(1+Tabelle3[[#This Row],[Ust. (in %)]])),\"\")","v":0}]
[null,5,null,null,null,null,null,null,null,null,null,null,null,null,{"$f":"IF(ISNUMBER(MIN(Tabelle3[[#This Row],[Zahlungsbetrag \nin EUR (inkl. MWSt)]]/(1+Tabelle3[[#This Row],[Ust. (in %)]]),Tabelle3[[#This Row],[Rechnungsbetrag \nin EUR \n(inkl. MWSt)]]*(1-Tabelle3[[#This Row],[Skonto (in %)]])/(1+Tabelle3[[#This Row],[Ust. (in %)]]))),MIN(Tabelle3[[#This Row],[Zahlungsbetrag \nin EUR (inkl. MWSt)]]/(1+Tabelle3[[#This Row],[Ust. (in %)]]),Tabelle3[[#This Row],[Rechnungsbetrag \nin EUR \n(inkl. MWSt)]]*(1-Tabelle3[[#This Row],[Skonto (in %)]])/(1+Tabelle3[[#This Row],[Ust. (in %)]])),\"\")","v":0}]
[null,6,null,null,null,null,null,null,null,null,null,null,null,null,{"$f":"IF(ISNUMBER(MIN(Tabelle3[[#This Row],[Zahlungsbetrag \nin EUR (inkl. MWSt)]]/(1+Tabelle3[[#This Row],[Ust. (in %)]]),Tabelle3[[#This Row],[Rechnungsbetrag \nin EUR \n(inkl. MWSt)]]*(1-Tabelle3[[#This Row],[Skonto (in %)]])/(1+Tabelle3[[#This Row],[Ust. (in %)]]))),MIN(Tabelle3[[#This Row],[Zahlungsbetrag \nin EUR (inkl. MWSt)]]/(1+Tabelle3[[#This Row],[Ust. (in %)]]),Tabelle3[[#This Row],[Rechnungsbetrag \nin EUR \n(inkl. MWSt)]]*(1-Tabelle3[[#This Row],[Skonto (in %)]])/(1+Tabelle3[[#This Row],[Ust. (in %)]])),\"\")","v":0}]
[null,7,null,null,null,null,null,null,null,null,null,null,null,null,{"$f":"IF(ISNUMBER(MIN(Tabelle3[[#This Row],[Zahlungsbetrag \nin EUR (inkl. MWSt)]]/(1+Tabelle3[[#This Row],[Ust. (in %)]]),Tabelle3[[#This Row],[Rechnungsbetrag \nin EUR \n(inkl. MWSt)]]*(1-Tabelle3[[#This Row],[Skonto (in %)]])/(1+Tabelle3[[#This Row],[Ust. (in %)]]))),MIN(Tabelle3[[#This Row],[Zahlungsbetrag \nin EUR (inkl. MWSt)]]/(1+Tabelle3[[#This Row],[Ust. (in %)]]),Tabelle3[[#This Row],[Rechnungsbetrag \nin EUR \n(inkl. MWSt)]]*(1-Tabelle3[[#This Row],[Skonto (in %)]])/(1+Tabelle3[[#This Row],[Ust. (in %)]])),\"\")","v":0}]
[null,8,null,null,null,null,null,null,null,null,null,null,null,null,{"$f":"IF(ISNUMBER(MIN(Tabelle3[[#This Row],[Zahlungsbetrag \nin EUR (inkl. MWSt)]]/(1+Tabelle3[[#This Row],[Ust. (in %)]]),Tabelle3[[#This Row],[Rechnungsbetrag \nin EUR \n(inkl. MWSt)]]*(1-Tabelle3[[#This Row],[Skonto (in %)]])/(1+Tabelle3[[#This Row],[Ust. (in %)]]))),MIN(Tabelle3[[#This Row],[Zahlungsbetrag \nin EUR (inkl. MWSt)]]/(1+Tabelle3[[#This Row],[Ust. (in %)]]),Tabelle3[[#This Row],[Rechnungsbetrag \nin EUR \n(inkl. MWSt)]]*(1-Tabelle3[[#This Row],[Skonto (in %)]])/(1+Tabelle3[[#This Row],[Ust. (in %)]])),\"\")","v":0}]
[null,9,null,null,null,null,null,null,null,null,null,null,null,null,{"$f":"IF(ISNUMBER(MIN(Tabelle3[[#This Row],[Zahlungsbetrag \nin EUR (inkl. MWSt)]]/(1+Tabelle3[[#This Row],[Ust. (in %)]]),Tabelle3[[#This Row],[Rechnungsbetrag \nin EUR \n(inkl. MWSt)]]*(1-Tabelle3[[#This Row],[Skonto (in %)]])/(1+Tabelle3[[#This Row],[Ust. (in %)]]))),MIN(Tabelle3[[#This Row],[Zahlungsbetrag \nin EUR (inkl. MWSt)]]/(1+Tabelle3[[#This Row],[Ust. (in %)]]),Tabelle3[[#This Row],[Rechnungsbetrag \nin EUR \n(inkl. MWSt)]]*(1-Tabelle3[[#This Row],[Skonto (in %)]])/(1+Tabelle3[[#This Row],[Ust. (in %)]])),\"\")","v":0}]
[null,10,null,null,null,null,null,null,null,null,null,null,null,null,{"$f":"IF(ISNUMBER(MIN(Tabelle3[[#This Row],[Zahlungsbetrag \nin EUR (inkl. MWSt)]]/(1+Tabelle3[[#This Row],[Ust. (in %)]]),Tabelle3[[#This Row],[Rechnungsbetrag \nin EUR \n(inkl. MWSt)]]*(1-Tabelle3[[#This Row],[Skonto (in %)]])/(1+Tabelle3[[#This Row],[Ust. (in %)]]))),MIN(Tabelle3[[#This Row],[Zahlungsbetrag \nin EUR (inkl. MWSt)]]/(1+Tabelle3[[#This Row],[Ust. (in %)]]),Tabelle3[[#This Row],[Rechnungsbetrag \nin EUR \n(inkl. MWSt)]]*(1-Tabelle3[[#This Row],[Skonto (in %)]])/(1+Tabelle3[[#This Row],[Ust. (in %)]])),\"\")","v":0}]
[null,11,null,null,null,null,null,null,null,null,null,null,null,null,{"$f":"IF(ISNUMBER(MIN(Tabelle3[[#This Row],[Zahlungsbetrag \nin EUR (inkl. MWSt)]]/(1+Tabelle3[[#This Row],[Ust. (in %)]]),Tabelle3[[#This Row],[Rechnungsbetrag \nin EUR \n(inkl. MWSt)]]*(1-Tabelle3[[#This Row],[Skonto (in %)]])/(1+Tabelle3[[#This Row],[Ust. (in %)]]))),MIN(Tabelle3[[#This Row],[Zahlungsbetrag \nin EUR (inkl. MWSt)]]/(1+Tabelle3[[#This Row],[Ust. (in %)]]),Tabelle3[[#This Row],[Rechnungsbetrag \nin EUR \n(inkl. MWSt)]]*(1-Tabelle3[[#This Row],[Skonto (in %)]])/(1+Tabelle3[[#This Row],[Ust. (in %)]])),\"\")","v":0}]
[null,12,null,null,null,null,null,null,null,null,null,null,null,null,{"$f":"IF(ISNUMBER(MIN(Tabelle3[[#This Row],[Zahlungsbetrag \nin EUR (inkl. MWSt)]]/(1+Tabelle3[[#This Row],[Ust. (in %)]]),Tabelle3[[#This Row],[Rechnungsbetrag \nin EUR \n(inkl. MWSt)]]*(1-Tabelle3[[#This Row],[Skonto (in %)]])/(1+Tabelle3[[#This Row],[Ust. (in %)]]))),MIN(Tabelle3[[#This Row],[Zahlungsbetrag \nin EUR (inkl. MWSt)]]/(1+Tabelle3[[#This Row],[Ust. (in %)]]),Tabelle3[[#This Row],[Rechnungsbetrag \nin EUR \n(inkl. MWSt)]]*(1-Tabelle3[[#This Row],[Skonto (in %)]])/(1+Tabelle3[[#This Row],[Ust. (in %)]])),\"\")","v":0}]
[null,null,null,null,null,null,null,null,null,{"$f":"SUBTOTAL(109,[Ust. (in %)])","v":0},null,null,null,{"$f":"SUBTOTAL(109,[Zahlungsbetrag \nin EUR (inkl. MWSt)])","v":0},{"$f":"SUBTOTAL(109,[förderungsfähige Kosten (exkl. MWSt, Skonti, Rabatte, offener Rücklässe)])","v":0}]
[null,"Mit meiner Unterschrift bestätige ich die Richtigkeit und Vollständigkeit der Angaben, weitere Kostennachweise werden nicht mehr vorgelegt. Die angeführten Rechnungsbeträge beziehen sich nur auf bereits erbrachte und in der o.a. Höhe bezahlte Leistungen. "]
[null,"Alle aktivierungspflichtigen Rechnungsbeträge wurden unter Berücksichtigung des UGB in voller Höhe aktiviert. Werden weitere Förderungen beantragt und ausbezahlt, gebe ich dies umgehend bekannt."]
[null,"Beilage: Rechnungen in Kopie (inkl. Zahlungsbelege)"]
[]
[]
[]
[null,null,"Ort, Datum",null,"Rechtsverbindliche Fertigung",null,null,"Kreditinstitut oder Steuerberater"]
[]
[]
[null,null,null,null,"Name, Funktion",null,null,"Name, Funktion"]
[]
[]
[]
[]
[]
[]
[]
[]
[]
[]
[]
[]
[null,null,null,null,null,null,null,null,null,null,null,null,null,null,null,null,"Feuerung und Kessel","Rohrleitungen","Heizhaus","Sonstiges *","Planung"]
[null,null,null,null,null,null,null,null,null,null,null,null,null,null,null,null,"Rauchgasreinigung","Grabungsarbeiten","Lager",null,"qm-Heizwerke"]
[null,null,null,null,null,null,null,null,null,null,null,null,null,null,null,null,"Aschebehälter und –förderung","Wärmeübergabestationen","Außenanlage"]
[null,null,null,null,null,null,null,null,null,null,null,null,null,null,null,null,"Wärmerückgewinnung",null,"Aufschließungskosten *"]
[null,null,null,null,null,null,null,null,null,null,null,null,null,null,null,null,"Brennstoffbeschickung"]
[null,null,null,null,null,null,null,null,null,null,null,null,null,null,null,null,"Krananlage"]
[null,null,null,null,null,null,null,null,null,null,null,null,null,null,null,null,"E-Installationen"]
[null,null,null,null,null,null,null,null,null,null,null,null,null,null,null,null,"H-Installationen"]
[null,null,null,null,null,null,null,null,null,null,null,null,null,null,null,null,"Stahlbau"]
[null,null,null,null,null,null,null,null,null,null,null,null,null,null,null,null,"Spitzenlastabdeckung *"]
[null,null,null,null,null,null,null,null,null,null,null,null,null,null,null,null,"Fahrzeuge *"]
[null,null,null,null,null,null,null,null,null,null,null,null,null,null,null,null,"Solaranlage"]

{"sheet":"Formular Endabrechnung","index":1,"n_rows":46,"n_cols":12,"rows_kept":46,"cut":false,"hidden":false,"merged":[[13,6,13,7],[14,6,14,7],[27,1,27,2],[15,1,15,2],[16,1,16,2],[20,6,20,7],[25,1,25,12],[27,11,27,12],[27,10,30,10],[14,1,14,2],[30,4,30,5],[15,6,15,7],[29,1,29,2],[30,1,30,2],[28,1,28,2],[17,1,17,2],[4,9,4,10],[10,6,10,7],[6,1,6,11],[12,1,12,2],[9,6,9,7],[4,2,4,3],[8,6,8,7],[4,4,4,8],[11,1,11,2],[1,2,1,12],[13,1,13,2],[22,6,22,7],[3,2,3,11],[16,6,16,7],[2,2,2,11],[10,1,10,2],[12,6,12,7],[8,1,8,2],[11,6,11,7],[21,1,21,2],[22,1,22,2],[17,6,17,7],[18,6,18,7],[18,1,18,2],[9,1,9,2],[45,1,45,12],[19,6,19,7],[27,4,27,5],[28,4,28,5],[29,4,29,5],[31,1,31,11],[19,1,19,2],[20,1,20,2],[30,11,30,12],[27,8,27,9],[28,11,28,12],[21,6,21,7],[28,8,28,9],[29,8,29,9],[30,8,30,9]]}
[]
[null,null,"Eine Förderung des Lebensministeriums – managed by Kommunalkredit Public Consulting "]
[null,null,"Endabrechnung Umweltförderung"]
[]
[null,null,"Antragsnr.: ……………..….",null,"Förderungsnehmer/in: ………..………………….…"]
[]
[null,"Auflistung der zur Förderung beantragten Rechnungen - Erläuterungen finden Sie im Hilfeblatt"]
[]
[null,"laufende \nNummer",null,"Firma","Rechnungs-\ndatum","Rechnungs-\nnummer","Art der Leistung",null,"Rechnungsbetrag \nin EUR \n(exkl. MWSt)","Zahlungs-\ndatum","Zahlungsbetrag \nin EUR (exkl. MWSt)","Anmerkungen \nder KPC"]
[null,1,null,{"$f":"'Formular Endabrechnung Land'!C12","v":0},{"$f":"'Formular Endabrechnung Land'!E12","v":"00:00:00"},{"$f":"'Formular Endabrechnung Land'!F12","v":0},{"$f":"'Formular Endabrechnung Land'!G12","v":0},null,{"$f":"'Formular Endabrechnung Land'!J12/(1+'Formular Endabrechnung Land'!K12)","v":0},{"$f":"'Formular Endabrechnung Land'!M12","v":"00:00:00"},{"$f":"'Formular Endabrechnung Land'!N12/(1+'Formular Endabrechnung Land'!K12)","v":0}]
[null,{"$f":"B10+1","v":2}]
[null,{"$f":"B11+1","v":3}]
[null,4]
[null,5]
[null,6]
[null,7]
[null,8]
[null,{"$f":"B17+1","v":9}]
[null,10]
[null,11]
[null,12]
[null,13]
[null,{"$f":"B22+1","v":14}]
[null,null,null,null,null,null,null,"Summe",{"$f":"SUM(I10:I23)","v":0},null,{"$f":"SUM(K10:K23)","v":0}]
[]
[null,"Für das hiermit abgerechnete Projekt wurden weiters folgende Förderungen beantragt, zugesichert oder ausbezahlt: "]
[]
[null,null,null,"Förderstelle","AnsprechpartnerIn",null,"Aktenzahl","\"De-minimis\"-Förderung?","Höhe der Förderung",null,"      Keine weitere Förderung"]
[null,1]
[null,2,2]
[null,3,3]
[null,"Mit meiner Unterschrift bestätige ich die Richtigkeit und Vollständigkeit der Angaben, weitere Kostennachweise werden nicht mehr vorgelegt. Die angeführten Rechnungsbeträge beziehen sich nur auf bereits erbrachte und in der o.a. Höhe bezahlte Leistungen. Alle aktivierungspflichtigen Rechnungsbeträge wurden unter Berücksichtigung des UGB in voller Höhe aktiviert. Alle in der Endabrechnung angeführten Eigenleistungen wurden unter Berücksichtigung des § 6 Abs. 1 EStG und des § 6 Zi 2a EStG mit den angeführten Beträgen aktiviert. Werden weitere Förderungen beantragt und ausbezahlt, gebe ich dies umgehend bekannt.\nBetragen die umweltrelevanten Investitionskosten laut Förderungsvertrag mehr als eine Mio. Euro, ist die Unterzeichnung des Endabrechnungsformulars durch Steuerberater, Hausbank oder Wirtschaftsprüfer verpflichtend. Mit Unterzeichnung bestätigt der Steuerberater, die Hausbank oder der Wirtschaftsprüfer, dass die im Endabrechnungsformular angeführten Rechnungen tatsächlich bezahlt wurden, ein Haftungsausschluss durch den Unterzeichner ist diesbezüglich nicht möglich. Zahlungsbelege müssen in diesem Fall nicht mehr gesondert vorgelegt werden."]
[]
[null,"Beilage: Rechnungen/Zahlungsbelege in Kopie"]
[]
[]
[]
[]
[]
[]
[]
[]
[null,"Unterschrift Förderungsnehmer/in",null,null,null,"durchführendes Kreditinstitut oder Steuerberater"]
[]
[]
[null,"Bitte übermitteln Sie das vollständig ausgefüllte und unterschriebene Formular inklusive aller angeführten Rechnungen und Zahlungsbelege sowie alle sonstigen erforderlichen Unterlagen gemäß Förderungsvertrag (vgl. Punkt 3 \"Auszahlungsbedingungen\").  Weiters ersuchen wir Sie um Übermittlung des Formulars als Excel-Datei zur effizienteren Bearbeitung Ihrer Abrechnung an umwelt@kommunalkredit.at."]

{"sheet":"Formular Endabrechnung ELER","index":2,"n_rows":44,"n_cols":12,"rows_kept":44,"cut":false,"hidden":false,"merged":[[28,1,28,11],[43,1,43,11],[26,1,26,2],[26,4,26,5],[26,8,26,9],[27,1,27,2],[27,4,27,5],[27,8,27,9],[22,1,22,12],[24,1,24,2],[24,4,24,5],[24,8,24,9],[24,10,27,10],[24,11,24,12],[25,1,25,2],[25,4,25,5],[25,8,25,9],[25,11,25,12],[27,11,27,12],[19,1,19,2],[7,1,7,11],[9,1,9,2],[10,1,10,2],[11,1,11,2],[12,1,12,2],[13,1,13,2],[14,1,14,2],[15,1,15,2],[16,1,16,2],[17,1,17,2],[18,1,18,2],[1,2,1,12],[2,2,2,11],[3,2,3,11],[4,2,4,11],[5,2,5,3],[5,4,5,7],[5,8,5,9]]}
[]
[null,null,"Eine Förderung des Lebensministeriums – managed by Kommunalkredit Public Consulting "]
[null,null,"Zahlungsantrag Umweltförderung"]
[null,null,"Kofinanzierung aus Mitteln Europäischer Landwirtschaftsfonds für Entwicklung im ländlichen Raum (ELER)"]
[]
[null,null,"Antragsnr.: ……………..….",null,"Förderungsnehmer/in: ……………………..………………….…"]
[]
[null,"Auflistung der zur Förderung beantragten Rechnungen  - Erläuterungen finden Sie im Hilfeblatt "]
[]
[null,"laufende \nNummer",null,"Firma","Rechnungs-\ndatum","Rechnungs-\nnummer","Art der Leistung","Rechnungsbetrag \nin EUR \n(exkl. MWSt)","Zahlungs-\ndatum","Zahlungsbetrag \nin EUR (exkl. MWSt)","förderungsfähige Kosten (exkl. MWSt, Skonti, Rabatte, offener Rücklässe)","Anmerkungen \nder KPC"]
[null,1,null,{"$f":"'Formular Endabrechnung Land'!C12","v":0},{"$f":"'Formular Endabrechnung Land'!E12","v":"00:00:00"},{"$f":"'Formular Endabrechnung Land'!F12","v":0},{"$f":"'Formular Endabrechnung Land'!G12","v":0},{"$f":"'Formular Endabrechnung Land'!J12/(1+'Formular Endabrechnung Land'!K12)","v":0},{"$f":"'Formular Endabrechnung Land'!M12","v":"00:00:00"},{"$f":"'Formular Endabrechnung Land'!N12/(1+'Formular Endabrechnung Land'!K12)","v":0},{"$f":"'Formular Endabrechnung Land'!O12","v":0}]
[null,{"$f":"B11+1","v":2}]
[null,{"$f":"B12+1","v":3}]
[null,4]
[null,5]
[null,6]
[null,7]
[null,8]
[null,9]
[null,10]
[null,null,null,null,null,null,null,{"$f":"SUM(H11:H20)","v":0},null,{"$f":"SUM(J11:J20)","v":0},{"$f":"SUM(K11:K20)","v":0}]
[]
[null,"Für das hiermit abgerechnete Projekt wurden weiters folgende Förderungen beantragt, zugesichert oder ausbezahlt: "]
[]
[null,null,null,"Förderstelle","AnsprechpartnerIn",null,"Aktenzahl","\"De-minimis\"-Förderung?","Höhe der Förderung",null,"      Keine weitere Förderung"]
[null,1]
[null,2,2]
[null,3,3]
[null,"Mit meiner Unterschrift bestätige ich die Richtigkeit und Vollständigkeit der Angaben, weitere Kostennachweise werden nicht mehr vorgelegt. Die angeführten Rechnungsbeträge beziehen sich nur auf bereits erbrachte und in der o.a. Höhe bezahlte Leistungen. Alle aktivierungspflichtigen Rechnungsbeträge wurden unter Berücksichtigung des UGB in voller Höhe aktiviert. Alle in der Endabrechnung angeführten Eigenleistungen wurden unter Berücksichtigung des § 6 Abs. 1 EStG und des § 6 Zi 2a EStG mit den angeführten Beträgen aktiviert. Werden weitere Förderungen beantragt und ausbezahlt, gebe ich dies umgehend bekannt."]
[]
[null,"Beilage: Rechnungen im Original (inkl. Zahlungsbelege)"]
[]
[]
[]
[]
[]
[]
[]
[]
[]
[null,"Unterschrift Förderungsnehmer/in",null,null,null,null,"Steuerberater",null,null,"durchführendes Kreditinstitut"]
[]
[]
[null,"Bitte übermitteln Sie das vollständig ausgefüllte und dreifach unterschriebene Formular inklusive aller angeführten Rechnungen und Zahlungsbelege sowie alle sonstigen erforderlichen Unterlagen gemäß Förderungsvertrag (vgl. Punkt 3 \"Auszahlungsbedingungen\"). \nWeiters ersuchen wir Sie um Übermittlung des Formulars als Excel-Datei zur effizienteren Bearbeitung Ihrer Abrechnung an umwelt@kommunalkredit.at."]

{"sheet":"Formular Endabrechnung EFRE","index":3,"n_rows":41,"n_cols":13,"rows_kept":41,"cut":false,"hidden":false,"merged":[[40,1,40,12],[25,1,25,2],[25,4,25,5],[25,8,25,9],[25,11,25,12],[26,1,26,2],[26,4,26,5],[26,8,26,9],[27,1,27,2],[27,4,27,5],[27,8,27,9],[27,11,27,12],[28,1,28,12],[18,1,18,2],[18,6,18,7],[19,1,19,2],[19,6,19,7],[22,1,22,12],[24,1,24,2],[24,4,24,5],[24,8,24,9],[24,10,27,10],[24,11,24,12],[15,1,15,2],[15,6,15,7],[16,1,16,2],[16,6,16,7],[17,1,17,2],[17,6,17,7],[12,1,12,2],[12,6,12,7],[13,1,13,2],[13,6,13,7],[14,1,14,2],[14,6,14,7],[11,1,11,2],[11,6,11,7],[1,2,1,13],[2,2,2,12],[3,2,3,12],[4,2,4,12],[5,2,5,3],[5,4,5,8],[5,9,5,10],[7,1,7,12],[9,1,9,2],[9,6,9,7],[10,1,10,2],[10,6,10,7]]}
[]
[null,null,"Eine Förderung des Lebensministeriums – managed by Kommunalkredit Public Consulting "]
[null,null,"Endabrechnung Umweltförderung"]
[null,null,"Kofinanzierung aus Mitteln des Europäischen Fonds für Regionale Entwicklung (EFRE)"]
[]
[null,null,"Antragsnr.: ……………..….",null,"Förderungsnehmer/in: ……………………..………………….…"]
[]
[null,"Auflistung der zur Förderung beantragten Rechnungen - Erläuterungen finden Sie im Hilfeblatt "]
[]
[null,"laufende \nNummer",null,"Firma","Rechnungs-\ndatum","Rechnungs-\nnummer","Art der Leistung",null,"Rechnungsbetrag \nin EUR \n(exkl. MWSt)","Zahlungs-\ndatum","Zahlungsbetrag \nin EUR (exkl. MWSt)","förderungsfähige Kosten (exkl. MWSt, Skonti, Rabatte, offener Rücklässe)","Anmerkungen \nder KPC"]
[null,1,null,{"$f":"'Formular Endabrechnung Land'!C12","v":0},{"$f":"'Formular Endabrechnung Land'!E12","v":"00:00:00"},{"$f":"'Formular Endabrechnung Land'!F12","v":0},{"$f":"'Formular Endabrechnung Land'!G12","v":0},null,{"$f":"'Formular Endabrechnung Land'!J12/(1+'Formular Endabrechnung Land'!K12)","v":0},{"$f":"'Formular Endabrechnung Land'!M12","v":"00:00:00"},{"$f":"'Formular Endabrechnung Land'!N12/(1+'Formular Endabrechnung Land'!K12)","v":0},{"$f":"'Formular Endabrechnung Land'!O12","v":0}]
[null,{"$f":"B11+1","v":2}]
[null,{"$f":"B12+1","v":3}]
[null,4]
[null,5]
[null,6]
[null,7]
[null,8]
[null,9]
[null,10]
[null,null,null,null,null,null,null,"Summe",{"$f":"SUM(I11:I20)","v":0},null,{"$f":"SUM(K11:K20)","v":0}]
[]
[null,"Für das hiermit abgerechnete Projekt wurden weiters folgende Förderungen beantragt, zugesichert oder ausbezahlt: "]
[]
[null,null,null,"Förderstelle","AnsprechpartnerIn",null,"Aktenzahl","\"De-minimis\"-Förderung?","Höhe der Förderung",null,"      Keine weitere Förderung"]
[null,1]
[null,2,2]
[null,3,3]
[null,"Mit meiner Unterschrift bestätige ich die Richtigkeit und Vollständigkeit der Angaben, weitere Kostennachweise werden nicht mehr vorgelegt. Die angeführten Rechnungsbeträge beziehen sich nur auf bereits erbrachte und in der o.a. Höhe bezahlte Leistungen. Alle aktivierungspflichtigen Rechnungsbeträge wurden unter Berücksichtigung des UGB in voller Höhe aktiviert. Alle in der Endabrechnung angeführten Eigenleistungen wurden unter Berücksichtigung des § 6 Abs. 1 EStG und des § 6 Zi 2a EStG mit den angeführten Beträgen aktiviert. Werden weitere Förderungen beantragt und ausbezahlt, gebe ich dies umgehend bekannt."]
[]
[null,"Beilage: Rechnungen im Original (inkl. Zahlungsbelege)"]
[]
[]
[]
[]
[]
[]
[]
[null,"Unterschrift Förderungsnehmer/in",null,null,null,null,"Steuerberater",null,null,null,"durchführendes Kreditinstitut"]
[]
[null,"Bitte übermitteln Sie das vollständig ausgefüllte und dreifach unterschriebene Formular inklusive aller angeführten Rechnungen und Zahlungsbelege sowie alle sonstigen erforderlichen Unterlagen gemäß Förderungsvertrag (vgl. Punkt 3 \"Auszahlungsbedingungen\"). \nWeiters ersuchen wir Sie um Übermittlung des Formulars als Excel-Datei zur effizienteren Bearbeitung Ihrer Abrechnung an umwelt@kommunalkredit.at."]

{"sheet":"Hilfeblatt","index":4,"n_rows":0,"n_cols":0,"rows_kept":0,"cut":false,"hidden":false,"merged":[]}

{"sheet":"IMPORT","index":5,"n_rows":9,"n_cols":16,"rows_kept":9,"cut":false,"hidden":false,"merged":[]}
[]
[null,null,null,396]
[null,null,"Projekt:","SON014","Heizkraftwerke Betriebssoftware"]
[null,null,"Abrechnung:",null,null,null,null,null,null,"Summe",{"$f":"SUM(K9:K128)","v":0}]
[]
[null,null,null,null,null,null,null,null,null,null,"Rechnungs-","anrechenbar","anrechenbar"]
[null,"R.Dat.","RNr.","Zahl.Dat.","Firma","PLZ","Ort","Leistung","BA","DG","betrag €","Brutto %","Brutto €","Skonto %","UST %","förderbar"]
[]
[null,{"$f":"'Formular Endabrechnung Land'!E12","v":"00:00:00"},{"$f":"'Formular Endabrechnung Land'!F12","v":0},{"$f":"'Formular Endabrechnung Land'!M12","v":"00:00:00"},{"$f":"'Formular Endabrechnung Land'!C12","v":0},{"$f":"'Formular Endabrechnung Land'!D12","v":0},null,{"$f":"'Formular Endabrechnung Land'!G12","v":0},null,{"$f":"VLOOKUP('Formular Endabrechnung Land'!I12,,2,FALSE)","v":{"$error":"#N/A"}},{"$f":"'Formular Endabrechnung Land'!J12","v":0},{"$f":"M9/K9*100","v":{"$error":"#DIV/0!"}},{"$f":"'Formular Endabrechnung Land'!O12*(1+IMPORT!O9)","v":0},{"$f":"'Formular Endabrechnung Land'!L12","v":0},{"$f":"'Formular Endabrechnung Land'!K12","v":0},0]